bitfinex/quotes_ETHUSD_20241001
["timestamp","ask_amount","ask_price","bid_price","bid_amount"]
[1727815159769,4.10376,2436.8,2436.1,4.10479]
[1727815159986,4.10376,2436.8,2435.9,4.10518]
[1727815159987,4.10421,2436.6,2435.9,4.10518]
[1727815160212,4.10421,2436.6,2435.1,4.10649]
[1727815160213,0.820808,2436.6,2435.1,4.10649]
[1727815160375,0.820808,2436.6,2433.9,4.2276148]
[1727815160376,4.10478,2436.2,2435.5,4.10581]
[1727815160577,0.53403123,2437.2,2435.3,4.10617]
[1727815160777,4.1046,2436.3,2435.3,4.10626]
[1727815160983,0.55,2437.0,2435.1,4.10654]
[1727815161183,0.55,2437.0,2435.2,0.8131]
[1727815161184,4.10547,2435.8,2435.2,0.8131]
[1727815161372,4.10547,2435.8,2434.5,7.5384294]
[1727815161373,4.10604,2435.5,2434.8,0.8131]
[1727815161569,4.1061,2435.4,2434.8,0.8131]
[1727815161912,0.410547,2435.8,2434.5,0.88440438]
[1727815161913,4.10672,2435.1,2434.5,0.88440438]
[1727815162435,4.10745,2434.6,2434.5,0.88440438]
[1727815162582,4.65846,2434.0,2433.9,0.1189948]
[1727815162768,4.65846,2434.0,2432.2,4.1115]
[1727815162769,0.55,2433.7,2432.2,4.1115]
[1727815163097,4.10916,2433.6,2432.8,4.11042]
[1727815163408,0.55,2433.4,2432.3,4.1113]
[1727815163564,4.1101,2433.1,2432.1,0.7996]
[1727815163765,4.1101,2433.1,2432.3,4.11129]
[1727815164148,4.10753,2434.6,2433.7,4.10895]
[1727815164407,4.10817,2434.2,2432.5,0.7743]
[1727815164620,4.10884,2433.8,2432.8,4.11046]
[1727815164827,2.0,2434.9,2432.6,4.11077]
[1727815164985,4.10947,2433.4,2432.6,4.11079]
[1727815165342,4.10947,2433.4,2432.0,0.00441714]
[1727815165343,4.10967,2433.3,2432.0,0.00441714]
[1727815165630,4.66167,2432.1,2432.0,0.00441714]
[1727815165768,4.11167,2432.1,2432.0,0.00441714]
[1727815166128,4.11149,2432.3,2432.0,0.00441714]
[1727815166327,4.11167,2432.1,2432.0,0.00441714]
[1727815166676,4.11104,2432.5,2432.0,0.00441714]
[1727815166919,4.11102,2432.5,2431.8,4.11214]
[1727815167124,4.11102,2432.5,2431.6,4.1124]
[1727815167125,0.411102,2432.5,2431.5,0.1189948]
[1727815167426,4.75336657,2433.0,2431.5,0.1189948]
[1727815167636,4.11037,2432.9,2432.0,4.11175]
[1727815167799,0.64310623,2433.7,2431.7,0.8568]
[1727815167800,4.10989,2433.2,2431.8,4.11214]
[1727815167998,4.10999,2433.1,2431.7,0.8568]
[1727815168299,4.10999,2433.1,2431.5,0.1189948]
[1727815168300,4.11185,2432.0,2431.5,0.1189948]
[1727815168492,4.11205,2431.9,2431.5,0.1189948]
[1727815168697,4.11219,2431.8,2431.5,0.1189948]
[1727815169026,4.11251,2431.6,2431.5,0.1189948]
[1727815169232,4.11204,2431.9,2431.5,0.1189948]
[1727815169534,3.0,2432.7,2431.9,4.11198]
[1727815169535,4.11069,2432.7,2431.9,4.11198]
[1727815169737,4.521209,2433.0,2431.6,0.7947]
[1727815169897,4.11003,2433.1,2432.1,4.1115]
[1727815170243,4.11089,2432.6,2431.5,5.0262448]
[1727815170452,4.111,2432.5,2431.7,4.1122]
[1727815170598,0.822189,2432.5,2431.7,4.1122]
[1727815170799,4.11089,2432.6,2431.9,4.11198]
[1727815171309,4.18041543,2433.6,2432.9,4.11019]
[1727815171514,4.10942,2433.5,2432.8,0.8587]
[1727815171815,4.10942,2433.5,2432.7,4.11059]
[1727815171816,0.821863,2433.5,2432.5,4.11093]
[1727815172044,4.10898,2433.7,2432.3,0.8587]
[1727815172341,4.10814,2434.2,2433.3,4.96878]
[1727815172659,4.10934,2433.5,2432.7,4.96991]
[1727815172800,4.10862,2434.0,2433.2,4.10967]
[1727815173296,4.10862,2434.0,2432.7,4.96979]
[1727815173297,4.10941,2433.5,2432.7,4.96979]
[1727815173533,0.4519449,2433.9,2432.7,0.8593]
[1727815173740,4.1083,2434.1,2433.4,4.10936]
[1727815173939,4.108,2434.3,2433.5,4.10916]
[1727815174144,4.10604,2435.5,2432.7,4.9699]
[1727815174145,4.10604,2435.5,2433.8,0.8341]
[1727815174455,4.10593,2435.5,2434.7,4.10723]
[1727815174600,0.07113405,2436.2,2434.8,0.8341]
[1727815174957,10.75717502,2437.2,2435.7,4.10558]
[1727815174958,4.10425,2436.5,2435.7,4.10558]
[1727815175220,4.10333,2437.1,2435.7,0.7925]
[1727815175421,0.07109847,2437.5,2435.7,0.7925]
[1727815175422,4.10263,2437.5,2436.6,4.10399]
[1727815175580,4.10008,2439.0,2435.9,3.0]
[1727815175581,4.1015,2438.2,2436.3,0.7925]
[1727815175781,4.10255,2437.6,2436.8,4.10364]
[1727815176029,4.10255,2437.6,2436.9,4.10357]
[1727815176330,4.10352,2437.0,2436.3,0.8485]
[1727815176681,4.10317,2437.2,2436.3,0.8485]
[1727815176888,4.10317,2437.2,2436.4,4.10439]
[1727815177329,4.10218,2437.8,2436.8,4.10372]
[1727815177622,0.42927261,2439.1,2438.5,0.851]
[1727815177808,0.42927261,2439.1,2439.0,4.10004]
[1727815178015,0.07102279,2440.3,2438.6,4.10065]
[1727815178016,4.0991,2439.6,2438.6,4.10065]
[1727815178319,0.40991,2439.6,2438.5,0.851]
[1727815178489,4.09859,2439.9,2438.5,0.851]
[1727815178490,4.09821,2440.1,2439.4,4.09935]
[1727815178690,4.09882,2439.8,2439.0,4.1]
[1727815178894,4.09853,2439.9,2438.9,4.10005]
[1727815178895,4.09853,2439.9,2439.1,4.09976]
[1727815179124,0.409853,2439.9,2438.5,0.851]
[1727815179423,4.09898,2439.7,2438.7,4.10053]
[1727815179630,4.0987,2439.8,2438.9,4.10006]
[1727815179931,4.098,2440.3,2439.3,0.7924]
[1727815180077,4.09887,2439.7,2439.3,0.7924]
[1727815180528,4.50789,2440.2,2439.3,0.7924]
[1727815180529,4.09936,2439.5,2439.3,0.7924]
[1727815180726,4.09928,2439.5,2438.6,0.7924]
[1727815181089,4.09956,2439.3,2438.6,0.7924]
[1727815181288,0.819884,2439.3,2438.6,0.7924]
[1727815181487,4.09893,2439.7,2438.8,4.10037]
[1727815181718,4.09854,2439.9,2438.8,4.10037]
[1727815181884,4.09889,2439.7,2438.6,4.8931]
[1727815182090,4.09904,2439.6,2438.6,0.7924]
[1727815182485,4.10004,2439.0,2438.6,0.7924]
[1727815182684,4.09916,2439.6,2438.7,4.10042]
[1727815182913,4.09873,2439.8,2438.7,4.10042]
[1727815182914,4.099,2439.7,2438.7,4.1005]
[1727815183127,0.819773,2439.6,2438.8,0.08153066]
[1727815183288,4.09924,2439.5,2438.6,0.7924]
[1727815183619,4.09924,2439.5,2437.5,4.10254]
[1727815183620,4.10084,2438.6,2437.3,0.7755]
[1727815183782,4.10045,2438.8,2437.9,4.10176]
[1727815183985,4.10137,2438.3,2437.3,4.87833]
[1727815184187,4.10158,2438.1,2437.3,4.87836]
[1727815184437,4.10158,2438.1,2437.3,0.7755]
[1727815184751,4.10158,2438.1,2437.0,4.10338]
[1727815184752,0.55,2438.0,2436.5,0.8002]
[1727815185060,0.55,2438.0,2434.0,2.3948]
[1727815185061,4.10527,2435.9,2435.1,4.10654]
[1727815185332,4.10527,2435.9,2434.7,0.8002]
[1727815185333,4.10566,2435.7,2434.7,0.8002]
[1727815185532,4.10512,2436.0,2435.1,4.10657]
[1727815185687,4.10354,2437.0,2434.7,0.8002]
[1727815186040,4.10436,2436.5,2435.4,4.10601]
[1727815186242,4.10331,2437.1,2436.0,0.7867]
[1727815186389,4.10331,2437.1,2436.1,4.10475]
[1727815186390,4.10363,2436.9,2436.1,4.10475]
[1727815186589,4.10386,2436.8,2436.0,4.89175]
[1727815186815,4.10346,2437.0,2436.2,4.10462]
[1727815187085,0.55,2437.9,2436.2,4.10473]
[1727815187304,4.10295,2437.3,2436.0,0.7867]
[1727815187512,4.10295,2437.3,2436.4,4.10427]
[1727815187513,4.10331,2437.1,2436.4,4.10427]
[1727815187732,4.10271,2437.5,2436.8,4.1037]
[1727815187889,0.820295,2438.1,2436.1,3.0]
[1727815187890,4.10192,2437.9,2437.2,4.10303]
[1727815188089,4.1014,2438.2,2437.4,4.10258]
[1727815188287,0.3102,2439.0,2436.9,3.7867]
[1727815188590,4.10192,2437.9,2436.9,0.7867]
[1727815188826,4.10213,2437.8,2436.9,0.7867]
[1727815189039,4.10133,2438.3,2436.9,0.7867]
[1727815189525,4.10239,2437.6,2436.9,0.7867]
[1727815189724,0.45910171,2438.7,2436.9,0.7867]
[1727815189929,4.10291,2437.3,2436.9,0.7867]
[1727815190508,4.1031,2437.2,2436.9,0.7867]
[1727815190660,0.3102,2438.4,2435.5,6.65402502]
[1727815190661,4.10304,2437.3,2436.3,0.8373]
[1727815190860,4.10312,2437.2,2436.5,4.1041]
[1727815191065,4.10304,2437.3,2436.5,4.1041]
[1727815191272,4.10261,2437.5,2436.7,4.1039]
[1727815191598,4.10231,2437.7,2437.0,4.10339]
[1727815191805,4.10193,2437.9,2437.2,4.10295]
[1727815192017,4.10128,2438.3,2437.5,4.10256]
[1727815192216,0.3102,2439.0,2437.4,4.93996]
[1727815192366,4.10118,2438.4,2437.4,0.8373]
[1727815192566,4.10118,2438.4,2437.7,4.10206]
[1727815192761,4.09788,2440.3,2437.4,0.8373]
[1727815192762,4.10057,2438.7,2438.0,4.10163]
[1727815192966,4.10091,2438.5,2437.8,4.10202]
[1727815193382,4.10056,2438.7,2437.8,4.10202]
[1727815193615,4.10089,2438.5,2437.8,8.20396]
[1727815193910,4.10089,2438.5,2437.4,0.8373]
[1727815193911,0.820145,2438.5,2437.4,0.8373]
[1727815194116,4.09969,2439.3,2437.6,4.10233]
[1727815194280,11.06336502,2439.6,2437.6,4.1023]
[1727815194281,4.10073,2438.6,2437.6,4.1023]
[1727815194484,4.10106,2438.4,2437.8,4.1019]
[1727815194896,0.410106,2438.4,2437.4,4.93996]
[1727815195121,4.10158,2438.1,2437.1,0.781]
[1727815195421,4.10352,2437.0,2436.3,4.88557]
[1727815195567,4.10374,2436.8,2436.3,0.781]
[1727815195770,4.10352,2437.0,2436.3,0.781]
[1727815196213,4.10352,2437.0,2431.7,2.50575927]
[1727815196214,0.410352,2436.9,2435.4,0.781]
[1727815196395,4.1037,2436.9,2435.9,4.10518]
[1727815196576,4.10401,2436.7,2436.0,4.10498]
[1727815196786,4.10291,2437.3,2436.1,4.88579]
[1727815196970,4.10291,2437.3,2435.2,4.10633]
[1727815196971,4.10522,2436.0,2435.3,4.10625]
[1727815197172,0.3102,2436.8,2435.1,0.781]
[1727815197173,4.10449,2436.4,2435.1,0.781]
[1727815197373,4.10595,2435.5,2435.1,0.781]
[1727815197646,4.10657,2435.2,2434.4,4.10766]
[1727815197811,4.10653,2435.2,2434.5,0.781]
[1727815198182,0.55,2436.2,2434.5,0.781]
[1727815198383,4.10621,2435.4,2434.5,0.781]
[1727815198583,4.10585,2435.6,2434.6,4.10735]
[1727815198805,4.10554,2435.8,2435.0,4.10667]
[1727815199092,4.10565,2435.7,2435.0,4.10667]
[1727815199407,0.51548934,2436.1,2434.8,4.10701]
[1727815199408,4.10604,2435.5,2434.8,4.10701]
[1727815199612,4.10509,2436.0,2434.8,4.10701]
[1727815199922,4.10509,2436.0,2434.5,4.88848]
[1727815199923,4.10644,2435.2,2434.5,0.781]
[1727815200226,4.10644,2435.2,2434.5,4.88859]
[1727815200227,4.10655,2435.2,2434.5,4.88859]
[1727815200384,4.10632,2435.3,2434.5,4.88859]
[1727815200385,4.10632,2435.3,2434.6,4.1073]
[1727815200587,0.51548934,2436.1,2434.5,0.781]
[1727815200806,4.10727,2434.8,2434.5,0.781]
[1727815200986,4.1065,2435.2,2434.0,0.8059]
[1727815201196,4.10587,2435.6,2434.0,4.91423]
[1727815201197,4.10722,2434.8,2434.0,4.91423]
[1727815201409,4.10712,2434.8,2434.2,4.10799]
[1727815201610,0.3102,2435.7,2434.2,0.74056427]
[1727815201791,10.75862502,2436.3,2434.6,4.10734]
[1727815201792,4.10531,2435.9,2434.6,4.10734]
[1727815202135,4.10615,2435.4,2434.6,4.1074]
[1727815202338,4.10542,2435.8,2434.0,6.65402502]
[1727815202545,4.10485,2436.2,2435.6,4.10575]
[1727815202707,4.10419,2436.6,2435.7,0.7837]
[1727815202895,4.10154,2438.2,2435.7,0.7837]
[1727815202896,4.10297,2437.3,2435.7,0.7837]
[1727815203094,0.410297,2437.3,2436.6,4.10404]
[1727815203340,0.3102,2437.9,2435.7,3.7837]
[1727815203341,4.10343,2437.0,2436.7,0.7837]
[1727815203557,4.10269,2437.5,2436.9,4.10354]
[1727815203698,0.07106588,2438.5,2437.1,4.1032]
[1727815203699,4.10195,2437.9,2437.1,4.1032]
[1727815203894,0.3102,2438.5,2437.0,0.08206727]
[1727815204094,4.10135,2438.3,2437.1,0.7837]
[1727815204443,4.10153,2438.2,2437.1,0.7837]
[1727815204593,0.3102,2439.1,2437.2,4.10294]
[1727815204793,4.10115,2438.4,2437.6,4.10236]
[1727815204998,0.3102,2439.1,2438.0,4.10165]
[1727815204999,4.10022,2438.9,2438.0,4.10165]
[1727815205208,4.09993,2439.1,2438.1,0.08201702]
[1727815205546,0.3102,2439.7,2438.5,0.7837]
[1727815205547,4.09981,2439.2,2438.5,0.7837]
[1727815205702,4.09927,2439.5,2438.7,4.10053]
[1727815205903,4.09906,2439.6,2438.5,0.7837]
[1727815206097,4.09925,2439.5,2438.5,0.7837]
[1727815206303,4.09898,2439.7,2438.9,4.10007]
[1727815206516,4.09826,2440.1,2439.3,4.09952]
[1727815206764,4.09826,2440.1,2439.4,4.09925]
[1727815206918,4.09793,2440.3,2439.3,4.09952]
[1727815207123,4.09883,2439.8,2439.2,0.8856]
[1727815207349,4.09841,2440.0,2439.2,0.8856]
[1727815207350,4.09853,2439.9,2439.2,0.8856]
[1727815207534,4.09841,2440.0,2439.2,0.8856]
[1727815207736,4.09841,2440.0,2439.2,4.98529]
[1727815207936,4.507883,2440.2,2439.2,0.8856]
[1727815207937,4.507823,2440.2,2439.2,0.8856]
[1727815208165,4.09718,2440.8,2439.4,4.09923]
[1727815208390,4.09718,2440.8,2439.5,4.09918]
[1727815208391,4.09809,2440.2,2439.5,4.09918]
[1727815208537,4.09814,2440.2,2439.4,4.09935]
[1727815208867,4.09775,2440.4,2439.7,4.09885]
[1727815209071,4.09708,2440.8,2439.6,4.09889]
[1727815209236,0.5479,2441.4,2439.6,4.09889]
[1727815209237,4.09745,2440.6,2439.7,0.8779]
[1727815209440,4.09815,2440.2,2439.2,0.8779]
[1727815209639,0.409745,2440.6,2439.2,0.8779]
[1727815209640,4.09889,2439.7,2439.2,0.8779]
[1727815209836,4.09918,2439.6,2439.2,0.8779]
[1727815210181,4.0987,2439.8,2439.2,0.8779]
[1727815210182,4.09875,2439.8,2439.2,0.8779]
[1727815210670,3.409745,2440.6,2439.2,0.8779]
[1727815210868,4.09915,2439.6,2439.2,0.8779]
[1727815211169,4.09838,2440.0,2439.2,0.8779]
[1727815211374,4.09999,2439.1,2438.3,0.8504]
[1727815211580,4.10022,2438.9,2438.3,0.8504]
[1727815211862,4.10033,2438.9,2438.3,0.8504]
[1727815212063,4.09832,2440.1,2438.3,1.34557]
[1727815212278,4.09832,2440.1,2438.6,4.10067]
[1727815212279,4.09971,2439.2,2438.6,4.10067]
[1727815212474,4.10033,2438.9,2438.3,0.8504]
[1727815212640,4.09943,2439.4,2438.6,4.10068]
[1727815212843,4.10037,2438.9,2438.3,0.8504]
[1727815213061,4.09965,2439.3,2438.3,0.8504]
[1727815213433,4.09855,2439.9,2438.3,0.8504]
[1727815213664,4.10002,2439.1,2438.3,4.9515]
[1727815213849,0.50726181,2440.2,2438.3,1.34555]
[1727815214063,4.09892,2439.7,2438.3,0.8504]
[1727815214270,4.0995,2439.4,2438.7,4.10042]
[1727815214438,4.09914,2439.6,2438.6,4.10057]
[1727815214633,4.09914,2439.6,2439.0,4.10001]
[1727815214938,4.09875,2439.8,2439.1,4.09986]
[1727815215193,4.09875,2439.8,2438.9,4.10014]
[1727815215348,4.10004,2439.1,2438.7,0.8959]
[1727815215554,4.0993,2439.5,2438.9,4.10015]
[1727815215754,4.0993,2439.5,2438.8,4.10021]
[1727815216076,4.09891,2439.7,2438.7,0.8959]
[1727815216077,4.0989,2439.7,2438.7,0.8959]
[1727815216378,4.0989,2439.7,2438.9,4.10008]
[1727815216589,0.7507025,2440.5,2438.9,0.499598]
[1727815216876,0.5479,2440.9,2439.0,0.9234]
[1727815217179,4.09909,2439.6,2439.0,5.02343]
[1727815217347,4.09909,2439.6,2438.2,4.10135]
[1727815217348,4.10167,2438.1,2437.9,0.9234]
[1727815217549,4.10111,2438.4,2437.2,0.9234]
[1727815217767,4.10273,2437.4,2437.2,0.9234]
[1727815217969,4.10286,2437.4,2437.2,0.9234]
[1727815218282,0.5479,2438.9,2437.2,0.9234]
[1727815218283,4.10245,2437.6,2437.2,0.9234]
[1727815218466,0.5479,2438.9,2437.2,0.9234]
[1727815218467,4.10216,2437.8,2437.2,0.9234]
[1727815218778,0.7201925,2438.8,2437.2,0.9234]
[1727815218779,0.61110889,2438.4,2437.2,0.9234]
[1727815219081,0.55,2438.7,2437.2,0.9234]
[1727815219082,4.10273,2437.4,2437.2,0.9234]
[1727815219281,4.10276,2437.4,2437.2,0.9234]
[1727815219484,4.10259,2437.5,2437.2,0.9234]
[1727815219686,4.10232,2437.7,2437.2,0.9234]
[1727815219980,4.10141,2438.2,2437.2,0.9234]
[1727815219981,4.1029,2437.3,2437.2,0.9234]
[1727815220230,4.1029,2437.3,2436.6,0.9171]
[1727815220231,4.10391,2436.7,2436.6,0.9171]
[1727815220537,4.10345,2437.0,2435.9,0.9281]
[1727815220538,4.10509,2436.0,2435.9,0.9281]
[1727815220789,8.20902,2436.4,2435.9,0.9281]
[1727815220958,4.10442,2436.4,2435.9,0.9281]
[1727815221157,4.10475,2436.2,2435.9,0.9281]
[1727815221467,4.10484,2436.2,2435.9,0.9281]
[1727815221670,4.65141,2437.0,2435.9,0.9281]
[1727815221671,4.10504,2436.1,2435.9,0.9281]
[1727815221870,0.465141,2436.9,2435.2,0.9108]
[1727815222069,4.10474,2436.3,2435.7,4.10549]
[1727815222366,4.10435,2436.5,2435.7,4.10548]
[1727815222568,4.10468,2436.3,2435.3,0.9041]
[1727815222766,4.10569,2435.7,2435.3,0.9041]
[1727815222967,4.1035,2437.0,2435.3,0.9041]
[1727815222968,4.1061,2435.4,2435.3,0.9041]
[1727815223638,4.10609,2435.5,2434.5,0.9326]
[1727815223865,4.10637,2435.3,2434.6,4.611333]
[1727815224082,4.10565,2435.7,2434.5,0.9326]
[1727815224299,4.10669,2435.1,2434.0,0.9326]
[1727815224584,4.10669,2435.1,2431.7,3.72127994]
[1727815224585,4.10829,2434.1,2433.4,0.9326]
[1727815224739,0.5479,2435.5,2433.6,4.10904]
[1727815224740,4.10739,2434.7,2433.6,4.10904]
[1727815224938,4.65398,2435.5,2433.7,0.410904]
[1727815224939,4.1069,2435.0,2433.7,0.410904]
[1727815225143,4.10817,2434.2,2433.4,0.9326]
[1727815225356,4.10816,2434.2,2433.4,0.9326]
[1727815225565,4.10848,2434.0,2433.4,0.9326]
[1727815225765,4.1078,2434.4,2433.4,1.436827]
[1727815225983,4.10841,2434.1,2433.4,5.04199]
[1727815226804,4.10823,2434.2,2433.4,5.04199]
[1727815227090,4.10739,2434.7,2433.4,5.04199]
[1727815227091,4.10738,2434.7,2434.0,4.10846]
[1727815227404,4.10605,2435.5,2434.7,4.10715]
[1727815227708,4.10605,2435.5,2434.3,3.0]
[1727815227709,4.65215,2436.5,2435.2,4.10643]
[1727815227868,4.65215,2436.5,2434.8,3.0]
[1727815227869,4.10462,2436.3,2435.3,0.9063]
[1727815228203,4.10424,2436.6,2435.8,4.10541]
[1727815228382,0.5479,2437.1,2435.7,4.10556]
[1727815228383,4.10361,2436.9,2435.7,4.10556]
[1727815228554,0.410361,2436.8,2435.3,0.9063]
[1727815228997,0.410361,2436.8,2435.6,4.10561]
[1727815229200,4.10394,2436.7,2435.8,4.10539]
[1727815229405,0.5479,2437.1,2435.3,0.9063]
[1727815229555,4.10447,2436.4,2435.3,0.9063]
[1727815229751,4.10416,2436.6,2435.3,3.9063]
[1727815229994,4.10416,2436.6,2435.8,4.1054]
[1727815230197,4.1038,2436.8,2436.0,4.10508]
[1727815230501,0.5479,2437.1,2436.0,4.10508]
[1727815230502,4.10403,2436.7,2436.0,4.10503]
[1727815230652,4.10411,2436.6,2435.9,0.9145]
[1727815231008,0.97720984,2438.0,2436.6,4.10407]
[1727815231305,4.102,2437.9,2437.0,4.10328]
[1727815231457,0.42930984,2438.0,2437.0,4.10328]
[1727815231458,4.10173,2438.0,2437.2,4.10304]
[1727815231793,4.10207,2437.8,2437.2,4.10304]
[1727815232198,4.64902,2438.4,2436.8,4.10369]
[1727815232199,0.11127711,2437.7,2436.8,4.10369]
[1727815232385,4.10254,2437.6,2436.8,8.20731]
[1727815232584,4.1014,2438.2,2437.2,4.10293]
[1727815232785,5.07717549,2439.0,2437.4,7.10273]
[1727815232786,0.10745027,2437.5,2437.4,7.10273]
[1727815232953,4.10166,2438.1,2437.4,3.0]
[1727815233153,0.10833224,2438.0,2437.1,0.8667]
[1727815233502,10.75331502,2439.5,2438.1,0.8667]
[1727815233503,4.10092,2438.5,2438.1,0.8667]
[1727815233806,0.5479,2439.4,2438.1,0.8667]
[1727815233807,4.10037,2438.8,2438.1,0.8667]
[1727815234098,4.10239,2437.6,2437.5,0.8608]
[1727815234294,4.10251,2437.6,2436.9,4.96424]
[1727815234601,4.10325,2437.1,2436.9,0.8608]
[1727815234803,4.10396,2436.7,2436.4,0.8898]
[1727815234958,4.10362,2436.9,2436.4,0.8898]
[1727815235162,4.10402,2436.7,2436.4,0.8898]
[1727815235702,4.10407,2436.6,2435.4,0.8898]
[1727815235858,4.10407,2436.6,2434.4,0.4094]
[1727815235859,4.10623,2435.4,2434.7,4.10717]
[1727815236056,4.10636,2435.3,2434.4,0.8898]
[1727815236402,0.410402,2436.6,2434.4,0.8898]
[1727815236606,4.10645,2435.2,2434.4,0.8898]
[1727815236757,4.10681,2435.0,2434.4,0.8898]
[1727815236955,4.10453,2436.4,2434.4,0.8898]
[1727815236956,0.55,2436.3,2434.4,0.8898]
[1727815237152,4.10562,2435.7,2434.8,4.10697]
[1727815237408,4.10562,2435.7,2435.0,4.10677]
[1727815237571,4.45977,2436.2,2435.0,4.10664]
[1727815237572,8.21068,2435.9,2435.0,4.10664]
[1727815237755,4.10498,2436.1,2435.4,4.96299]
[1727815237960,4.10462,2436.3,2435.6,4.10565]
[1727815238282,0.5487,2437.0,2435.6,4.10565]
[1727815238283,4.10389,2436.8,2435.7,0.08193499]
[1727815238620,4.10494,2436.1,2435.4,4.96288]
[1727815238900,4.10392,2436.7,2435.9,4.1051]
[1727815239103,4.10392,2436.7,2436.1,4.10479]
[1727815239320,4.10438,2436.5,2435.7,4.10551]
[1727815239466,4.10402,2436.7,2435.9,4.10514]
[1727815239664,4.1036,2436.9,2436.1,4.10489]
[1727815239970,4.10402,2436.7,2436.1,4.10489]
[1727815240311,4.10402,2436.7,2436.1,4.10479]
[1727815240506,8.20736,2436.9,2436.2,4.10472]
[1727815240661,4.10408,2436.6,2435.9,4.10513]
[1727815240868,8.20832,2436.6,2435.9,4.10513]
[1727815241092,0.465112,2437.4,2435.7,4.10542]
[1727815241093,4.10427,2436.5,2435.7,4.10542]
[1727815241413,5.02746703,2437.4,2435.4,0.8569]
[1727815241414,0.45954503,2437.3,2435.4,0.8569]
[1727815241620,4.10522,2436.0,2435.4,0.8569]
[1727815241821,4.10483,2436.2,2435.4,4.96293]
[1727815242118,4.10486,2436.2,2435.4,0.8569]
[1727815242315,4.10453,2436.4,2435.7,4.10547]
[1727815242496,4.10469,2436.3,2435.7,4.10556]
[1727815242866,4.10453,2436.4,2435.9,4.10524]
[1727815242867,0.09765992,2436.2,2435.9,4.10524]
[1727815243325,0.09771571,2436.1,2435.4,0.8569]
[1727815243501,8.20932,2436.3,2435.6,4.10566]
[1727815243705,4.10381,2436.8,2435.4,4.96291]
[1727815243706,4.10504,2436.1,2435.4,4.96294]
[1727815243888,4.1057,2435.7,2435.4,0.8569]
[1727815244224,4.20200403,2436.2,2434.9,0.8504]
[1727815244225,4.10638,2435.3,2434.9,0.8504]
[1727815244520,4.2028926,2435.6,2434.4,0.8504]
[1727815244521,4.10734,2434.7,2434.4,0.8504]
[1727815244833,0.55,2435.5,2433.8,4.10877]
[1727815244834,4.10767,2434.5,2433.8,4.10877]
[1727815245027,4.10867,2433.9,2433.3,4.10957]
[1727815245324,0.09683101,2433.8,2433.6,4.10907]
[1727815245473,0.5487,2434.7,2433.4,4.1094]
[1727815245674,4.10819,2434.2,2433.4,4.10936]
[1727815245930,0.09682911,2434.1,2433.9,4.10859]
[1727815246132,0.09682911,2434.1,2433.4,0.92995769]
[1727815246133,4.10704,2434.9,2434.0,4.10846]
[1727815246289,4.10704,2434.9,2434.0,4.10839]
[1727815246290,0.09687689,2434.8,2434.0,4.10839]
[1727815246490,0.09687689,2434.8,2434.2,4.10806]
[1727815246824,4.10668,2435.1,2434.2,4.108]
[1727815247117,0.09689417,2435.0,2434.6,4.10729]
[1727815247278,4.10672,2435.1,2434.4,4.10765]
[1727815247478,4.1068,2435.0,2434.4,4.10765]
[1727815247690,0.09690002,2435.0,2434.9,4.10694]
[1727815248034,4.10603,2435.5,2434.6,4.10734]
[1727815248035,4.10601,2435.5,2434.6,4.10734]
[1727815248318,4.10601,2435.5,2434.4,0.9238]
[1727815248319,4.10603,2435.5,2434.4,0.9238]
[1727815248609,4.1064,2435.3,2434.7,4.10727]
[1727815248818,0.09696184,2435.4,2434.7,4.1072]
[1727815248819,4.20318184,2435.4,2434.7,4.1072]
[1727815248974,0.09693934,2435.2,2434.8,4.1071]
[1727815249176,4.10553,2435.8,2434.8,0.82143]
[1727815249421,4.1061,2435.4,2434.7,4.10712]
[1727815249577,4.1061,2435.4,2434.7,8.21429]
[1727815249928,0.09693403,2435.3,2434.7,8.21429]
[1727815250087,0.09693403,2435.3,2434.5,4.10753]
[1727815250088,4.10644,2435.2,2434.5,4.10753]
[1727815250283,4.10688,2435.0,2434.4,0.9238]
[1727815250559,4.10791,2434.4,2433.9,0.8646]
[1727815250777,0.09685311,2434.3,2433.4,4.1094]
[1727815250958,0.5487,2434.4,2433.2,0.8646]
[1727815251292,4.10964,2433.3,2433.2,0.8646]
[1727815251496,4.10948,2433.4,2432.7,4.11063]
[1727815251797,4.10885,2433.8,2432.6,4.9754]
[1727815251798,4.11001,2433.1,2432.6,4.9754]
[1727815252087,4.11001,2433.1,2432.4,4.11107]
[1727815252088,4.11016,2433.0,2432.4,4.11107]
[1727815252289,4.11016,2433.0,2432.1,0.8646]
[1727815252290,0.09675316,2433.0,2432.5,4.11086]
[1727815252584,4.11035,2432.9,2432.3,4.11123]
[1727815252788,0.09673585,2432.8,2432.1,0.8646]
[1727815253094,0.09673585,2432.8,2431.7,0.5656807]
[1727815253095,0.09673585,2432.8,2432.7,4.11065]
[1727815253303,4.10813,2434.2,2433.5,4.1092]
[1727815253595,0.5487,2434.4,2433.4,4.10935]
[1727815253596,4.20522728,2434.1,2433.4,4.10935]
[1727815253799,4.20522728,2434.1,2433.6,4.10902]
[1727815253800,0.09691728,2434.1,2433.6,4.10902]
[1727815254087,0.09691728,2434.1,2433.9,4.10855]
[1727815254401,4.6551,2435.3,2434.5,4.10751]
[1727815254718,4.10458,2436.3,2434.8,4.10698]
[1727815254719,4.10619,2435.4,2434.8,4.10698]
[1727815254993,0.91493493,2435.3,2433.1,6.65402502]
[1727815255159,4.10773,2434.5,2433.8,4.10869]
[1727815255377,4.10741,2434.7,2434.0,4.10835]